lending/lending_fUSD_20260204
["ID","MTS","AMOUNT","RATE_DAILY","PERIOD"]
[404525784,1770242803508,-500.0,0.00011598,2]
[404525785,1770242803535,-500.0,0.00011598,2]
[404525786,1770242803563,-500.0,0.00011598,2]
[404525787,1770242803588,-500.0,0.00011598,2]
[404525788,1770242803614,-500.0,0.00011598,2]
[404525789,1770242803641,-500.0,0.00011598,2]
[404525790,1770242803668,-400.59647147,0.00011598,2]
[404525791,1770242803694,-500.0,0.00011598,2]
[404525792,1770242803719,-500.0,0.00011598,2]
[404525793,1770242803744,-500.0,0.00011598,2]
[404525794,1770242803769,-500.0,0.00011598,2]
[404525795,1770242803928,-500.0,0.00011598,2]
[404525796,1770242803955,-500.0,0.00011598,2]
[404525797,1770242803979,-500.0,0.00011598,2]
[404525798,1770242804005,-5533.90144411,0.00011598,2]
[404525799,1770242804033,-15006.53011205,0.00011599,2]
[404526066,1770243032224,-562.0,0.00010904,2]
[404526067,1770243032234,-239.0,0.00010904,2]
[404526068,1770243032244,-166.66,0.00010959,2]
[404526069,1770243032253,-200.0,0.00011083,2]
[404526070,1770243032262,-166.66,0.00011164,2]
[404526071,1770243032272,-1848.0,0.00011195,2]
[404526072,1770243032281,-237.46,0.000112,2]
[404526073,1770243032290,-439.0,0.00011218,2]
[404526074,1770243032300,-166.66,0.0001137,2]
[404526075,1770243032309,-500.0,0.00011425,2]
[404526076,1770243032320,-500.0,0.0001148,2]
[404526077,1770243032329,-1200.0,0.00011498,2]
[404526078,1770243032339,-48.04892545,0.00011498,2]
[404526079,1770243032358,-251.95107455,0.00011498,2]
[404526080,1770243032367,-300.0,0.00011498,2]
[404526081,1770243032376,-1192.0,0.00011498,2]
[404526082,1770243032385,-1889.64151325,0.00011499,2]
[404526083,1770243032449,-702.8148,0.00011499,2]
[404526100,1770243038387,-451.7681818,0.00011499,2]
[404526101,1770243038398,-1804.71574722,0.00011499,2]
[404526102,1770243038408,-500.0,0.00011535,2]
[404526103,1770243038417,-1316.83425278,0.00011562,2]
[404526104,1770243039590,-182.67503137,0.00011562,2]
[404526105,1770243039602,-1536.02905274,0.00011562,2]
[404526106,1770243039614,-292.212863,0.00011562,2]
[404526113,1770243040374,-872.14,0.00011562,2]
[404526114,1770243040386,-5081.3698465,0.00011562,2]
[404526115,1770243040397,-1655.35490122,0.00011562,2]
[404526116,1770243040449,-3322.01082656,0.00011562,2]
[404526117,1770243040460,-600.0,0.00011562,2]
[404526143,1770243044423,-438.0,0.00011562,2]
[404526144,1770243045416,-679.42751707,0.00011562,2]
[404526145,1770243045427,-2632.47457859,0.00011562,2]
[404526146,1770243045480,-2741.47113017,0.00011562,2]
[404526147,1770243045491,-166.66,0.00011575,2]
[404526148,1770243045501,-286.48363621,0.00011589,2]
[404526149,1770243045510,-519.179346,0.00011598,2]
[404526150,1770243045519,-153.5405425,0.00011598,2]
[404526151,1770243045528,-416.0,0.000116,2]
[404526152,1770243045538,-2700.0,0.000116,4]
[404526153,1770243045547,-150.0,0.00011692,2]
[404526154,1770243045559,-151.0,0.00011693,2]
[404526155,1770243045568,-151.0,0.00011693,2]
[404526156,1770243045578,-151.0,0.00011693,2]
[404526157,1770243045587,-151.0,0.00011693,2]
[404526158,1770243045597,-151.0,0.00011693,2]
[404526159,1770243045606,-151.0,0.00011693,2]
[404526160,1770243045616,-151.0,0.00011693,2]
[404526161,1770243045628,-151.0,0.00011693,2]
[404526162,1770243045638,-151.0,0.00011693,2]
[404526163,1770243045647,-151.0,0.00011693,2]
[404526164,1770243045656,-151.0,0.00011693,2]
[404526165,1770243045667,-151.0,0.00011693,2]
[404526166,1770243045676,-151.0,0.00011693,2]
[404526167,1770243045686,-151.0,0.00011693,2]
[404526168,1770243045697,-151.0,0.00011693,2]
[404526169,1770243045706,-151.0,0.00011693,2]
[404526170,1770243045715,-151.0,0.00011693,2]
[404526171,1770243045725,-151.0,0.00011693,2]
[404526172,1770243045734,-151.0,0.00011693,2]
[404526173,1770243045743,-151.0,0.00011693,2]
[404526174,1770243045752,-1076.99786911,0.00011698,2]
[404526175,1770243045761,-1474.477,0.00011699,2]
[404526176,1770243045770,-157.18,0.00011699,2]
[404526177,1770243045780,-5500.0,0.000117,4]
[404526178,1770243045789,-500.0,0.00011781,2]
[404526179,1770243045799,-166.66,0.00011781,2]
[404526180,1770243045808,-8300.0,0.000118,4]
[404526181,1770243045818,-196.0,0.00011871,2]
[404526182,1770243045827,-11000.0,0.000119,4]
[404526183,1770243045838,-166.66,0.00011986,2]
[404526184,1770243045848,-250.0,0.00011994,2]
[404526185,1770243045857,-169.35603716,0.00012023,2]
[404526186,1770243045867,-500.0,0.00012031,2]
[404526187,1770243045877,-500.0,0.00012055,2]
[404526188,1770243045886,-182.54569069,0.0001213,2]
[404526189,1770243045895,-10000.0,0.00012198,2]
[404526190,1770243045904,-18721.11244748,0.00012211,2]
[404526191,1770243045913,-195.0,0.00012252,2]
[404526192,1770243045923,-195.0,0.00012315,2]
[404526193,1770243045932,-193.53894116,0.00012315,2]
[404526194,1770243045942,-300.0,0.00012315,2]
[404526195,1770243045951,-250.0,0.00012315,2]
[404526196,1770243045961,-16654.72282774,0.00012319,2]
[404526197,1770243045970,-500.0,0.00012329,2]
[404526198,1770243045979,-523.59681009,0.00012421,2]
[404526199,1770243045988,-2252.9,0.00012432,2]
[404526200,1770243045998,-639.575051,0.00012557,2]
[404526202,1770243046007,-250.20103246,0.00012603,2]
[404526203,1770243046016,-420.0,0.00012629,2]
[404526205,1770243046025,-255.0,0.00012768,2]
[404526206,1770243046034,-472.0,0.00012879,2]
[404526207,1770243046043,-519.179346,0.00012888,2]
[404526208,1770243046052,-1942.0,0.00012904,2]
[404526209,1770243046062,-18721.11244748,0.00012922,2]
[404526210,1770243046071,-4848.94024227,0.00013097,2]
[404526212,1770243046081,-150.0,0.00013424,2]
[404526213,1770243046090,-150.0,0.00013424,2]
[404526214,1770243046100,-153.03,0.00013479,2]
[404526215,1770243046109,-301.69,0.00013537,2]
[404526216,1770243046119,-18721.11244748,0.00013633,2]
[404526217,1770243046128,-201.06578033,0.00013698,2]
[404526218,1770243046138,-500.0,0.00013698,2]
[404526219,1770243046147,-500.0,0.00013698,2]
[404526220,1770243046157,-500.0,0.00013698,2]
[404526221,1770243046166,-500.0,0.00013698,2]
[404526222,1770243046176,-500.0,0.00013698,2]
[404526223,1770243046185,-630.82371033,0.00013698,2]
[404526224,1770243046194,-500.0,0.00013698,2]
[404526226,1770243046204,-500.0,0.00013698,2]
[404526228,1770243046213,-500.0,0.00013698,2]
[404526230,1770243046222,-508.81699603,0.00013698,2]
[404526232,1770243046231,-500.0,0.00013698,2]
[404526233,1770243046241,-500.0,0.00013698,2]
[404526235,1770243046250,-500.0,0.00013698,2]
[404526237,1770243046259,-500.0,0.00013698,2]
[404526239,1770243046269,-500.0,0.00013698,2]
[404526241,1770243046278,-500.0,0.00013698,2]
[404526243,1770243046287,-500.0,0.00013698,2]
[404526244,1770243046296,-534.84,0.00013698,2]
[404526245,1770243046305,-150.99,0.00013699,2]
[404526246,1770243046315,-299.99,0.00013699,2]
[404526247,1770243046324,-9999.99,0.00013699,2]
[404526248,1770243046334,-9999.99,0.00013699,2]
[404526250,1770243046343,-6314.77,0.00013699,2]
[404526251,1770243046353,-9999.99,0.00013699,2]
[404526252,1770243046362,-587.0,0.00013871,2]
[404526253,1770243046371,-231.0,0.00013937,2]
[404526254,1770243046380,-519.179346,0.00014178,2]
[404526256,1770243046389,-18721.11244748,0.00014344,2]
[404526258,1770243046399,-235.04432353,0.000146,2]
[404526259,1770243046408,-639.05832686,0.000146,2]
[404526260,1770243046417,-500.0,0.000146,2]
[404526261,1770243046426,-500.0,0.000146,2]
[404526262,1770243046434,-500.0,0.000146,2]
[404526264,1770243046444,-1852.42,0.00014601,2]
[404526265,1770243046453,-4848.94024227,0.00014694,2]
[404526266,1770243046462,-500.0,0.00014712,2]
[404526267,1770243046471,-250.0,0.00015,2]
[404526268,1770243046480,-18721.11244748,0.00015056,2]
[404526269,1770243046489,-450.0,0.00015068,2]
[404526270,1770243046498,-3286.1281269,0.00015106,2]
[404526271,1770243046507,-5115.52230349,0.00015106,2]
[404526272,1770243046516,-1153.93461934,0.00015106,2]
[404526273,1770243046525,-1000.0,0.00015148,2]
[404526274,1770243046534,-1000.0,0.00015148,2]
[404526275,1770243046543,-418.49460526,0.00015148,2]
[404526276,1770243046552,-639.0,0.00015234,2]
[404526277,1770243046561,-519.179346,0.00015468,2]
[404526278,1770243046570,-1500.0,0.00015696,2]
[404526279,1770243046580,-1500.0,0.00015696,2]
[404526280,1770243046590,-18721.11244748,0.00015767,2]
[404526281,1770243046599,-500.0,0.00015857,2]
[404526282,1770243046608,-500.0,0.00015857,2]
[404526283,1770243046617,-13800.0,0.000159,5]
[404526284,1770243046631,-480.0,0.00015918,2]
[404526285,1770243046640,-7105.77,0.00016116,2]
[404526286,1770243046649,-2000.0,0.00016244,2]
[404526287,1770243046658,-2000.0,0.00016244,2]
[404526288,1770243046666,-4848.94024227,0.00016292,2]
[404526289,1770243046677,-4684.58618304,0.00016393,2]
[404526290,1770243046686,-500.0,0.00016438,2]
[404526291,1770243046696,-450.0,0.00016438,2]
[404526292,1770243046705,-800.755787,0.00016438,2]
[404526293,1770243046714,-481.28670728,0.00016451,2]
[404526294,1770243046723,-18721.11244748,0.00016478,2]
[404526295,1770243046732,-500.0,0.00016493,2]
[404526296,1770243046741,-480.0,0.00016515,2]
[404526297,1770243046751,-500.0,0.00016548,2]
[404526298,1770243046759,-4684.586183,0.0001656,2]
[404526299,1770243046769,-500.0,0.00016658,2]
[404526300,1770243046778,-4684.586183,0.00016728,2]
[404526301,1770243046787,-2121.04647407,0.00016792,2]
[404526302,1770243046796,-2500.0,0.00016792,2]
[404526303,1770243046805,-416.982919,0.00016815,7]
[404526304,1770243046814,-481.28670728,0.00016862,2]
[404526305,1770243046824,-4684.586183,0.00016895,2]
[404526306,1770243046834,-300.0,0.00017,2]
[404526307,1770243046843,-160.0,0.00017051,2]
[404526308,1770243046852,-4684.586183,0.00017063,2]
[404526309,1770243046861,-1000.0,0.00017106,2]
[404526310,1770243046871,-480.0,0.00017112,2]
[404526311,1770243046880,-500.0,0.00017149,2]
[404526312,1770243046889,-280.0,0.00017172,2]
[404526313,1770243046898,-18721.11244748,0.00017189,2]
[404526314,1770243046908,-456.738324,0.00017216,2]
[404526315,1770243046916,-4684.586183,0.0001723,2]
[404526316,1770243046926,-481.28670728,0.00017273,2]
[404526317,1770243046935,-3000.0,0.0001734,2]
[404526318,1770243046944,-4684.586183,0.00017398,2]
[404526319,1770243046953,-2700.0,0.000174,6]
[404526320,1770243046962,-280.0,0.00017497,2]
[404526321,1770243046971,-2700.0,0.000175,6]
[404526322,1770243046980,-4684.586183,0.00017565,2]
[404526323,1770243046989,-1345.0,0.00017577,2]
[404526324,1770243046998,-2700.0,0.000176,6]
[404526325,1770243047007,-301.69,0.00017644,2]
[404526326,1770243047016,-481.28670728,0.00017685,2]
[404526327,1770243047026,-2700.0,0.000177,6]
[404526328,1770243047035,-480.0,0.00017709,2]
[404526329,1770243047044,-500.0,0.0001772,2]
[404526330,1770243047054,-280.0,0.00017723,2]
[404526331,1770243047063,-4684.586183,0.00017733,2]
[404526332,1770243047073,-280.0,0.00017734,2]
[404526333,1770243047083,-1345.0,0.00017767,2]
[404526334,1770243047093,-3300.0,0.000178,6]
[404526335,1770243047103,-1317.26175,0.0001783,2]
[404526336,1770243047112,-1345.0,0.00017857,2]
[404526337,1770243047122,-1317.26175,0.0001788,2]
[404526338,1770243047131,-3500.0,0.00017888,2]
[404526339,1770243047140,-10142.1213,0.000179,2]
[404526340,1770243047149,-421.997,0.000179,2]
[404526341,1770243047159,-7470.5852,0.000179,2]
[404526342,1770243047168,-5000.0,0.000179,2]
[404526343,1770243047177,-1000.0,0.000179,2]
[404526344,1770243047187,-18721.11244748,0.000179,2]
[404526345,1770243047196,-571.53958794,0.000179,2]
[404526346,1770243047206,-681.5105921,0.000179,2]
[404526347,1770243047215,-4684.586183,0.000179,2]
[404526348,1770243047224,-963.95911122,0.000179,2]
[404526349,1770243047234,-1285.89372312,0.000179,2]
[404526350,1770243047243,-17177.6543458,0.000179,2]
[404526351,1770243047252,-19300.0,0.000179,2]
[404526352,1770243047262,-1317.26175,0.0001793,2]
[404526353,1770243047271,-500.0,0.00017945,2]
[404526354,1770243047280,-500.0,0.00017959,3]
[404526355,1770243047289,-500.0,0.00017973,2]
[404526356,1770243047299,-500.0,0.00017973,2]
[404526357,1770243047308,-500.0,0.00017973,2]
[404526358,1770243047317,-500.3243835,0.00017973,2]
[404526359,1770243047326,-500.0,0.00017973,2]
[404526360,1770243047336,-500.0,0.00017973,2]
[404526361,1770243047346,-500.0,0.00017973,2]
[404526362,1770243047355,-500.0,0.00017973,2]
[404526363,1770243047364,-500.0,0.00017973,2]
[404526364,1770243047374,-500.0,0.00017973,2]
[404526365,1770243047383,-500.0,0.00017973,2]
[404526366,1770243047392,-500.0,0.00017973,2]
[404526367,1770243047401,-293.82457575,0.00017973,2]
[404526368,1770243047410,-500.0,0.00017973,2]
[404526369,1770243047419,-500.0,0.00017973,2]
[404526370,1770243047428,-500.0,0.00017973,2]
[404526371,1770243047437,-500.0,0.00017973,2]
[404526372,1770243047446,-349.75358634,0.00017973,2]
[404526373,1770243047455,-500.0,0.00017973,2]
[404526374,1770243047464,-500.0,0.00017973,2]
[404526375,1770243047473,-500.0,0.00017973,2]
[404526376,1770243047483,-500.0,0.00017973,2]
[404526377,1770243047493,-599.14413433,0.00017973,2]
[404526378,1770243047502,-500.0,0.00017973,2]
[404526379,1770243047512,-500.0,0.00017973,2]
[404526380,1770243047522,-500.0,0.00017973,2]
[404526381,1770243047531,-500.0,0.00017973,2]
[404526382,1770243047541,-500.0,0.00017973,2]
[404526383,1770243047550,-173.24261396,0.00017973,2]
[404526384,1770243047559,-500.0,0.00017973,2]
[404526385,1770243047568,-500.0,0.00017973,2]
[404526387,1770243047577,-501.89927416,0.00017973,2]
[404526389,1770243047587,-500.0,0.00017973,2]
[404526391,1770243047596,-500.0,0.00017973,2]
[404526392,1770243047606,-500.0,0.00017973,2]
[404526394,1770243047615,-500.0,0.00017973,2]
[404526396,1770243047625,-501.04094175,0.00017973,2]
[404526398,1770243047635,-500.0,0.00017973,2]
[404526400,1770243047645,-500.0,0.00017973,2]
[404526402,1770243047654,-500.0,0.00017973,2]
[404526404,1770243047664,-500.0,0.00017973,2]
[404526407,1770243047674,-577.54146151,0.00017973,2]
[404526408,1770243047684,-500.40903786,0.00017973,2]
[404526410,1770243047694,-500.0,0.00017973,2]
[404526413,1770243047704,-500.0,0.00017973,2]
[404526415,1770243047713,-500.0,0.00017973,2]
[404526416,1770243047723,-371.34493106,0.00017973,2]
[404526418,1770243047732,-500.0,0.00017973,2]
[404526437,1770243047908,-500.0,0.00017973,2]
[404526439,1770243047918,-500.0,0.00017973,2]
[404526441,1770243047928,-500.0,0.00017973,2]
[404526443,1770243047937,-500.0,0.00017973,2]
[404526445,1770243047946,-500.0,0.00017973,2]
[404526447,1770243047955,-500.0,0.00017973,2]
[404526449,1770243047965,-500.0,0.00017973,2]
[404526451,1770243047974,-500.0,0.00017973,2]
[404526453,1770243047983,-150.0,0.00017973,2]
[404526455,1770243047993,-150.0,0.00017973,2]
[404526457,1770243048002,-1317.26175,0.0001798,2]
[404526459,1770243048012,-500.0,0.00017982,2]
[404526461,1770243048021,-196.3623484,0.00017988,2]
[404526463,1770243048031,-152.38,0.0001799,2]
[404526465,1770243048041,-152.38,0.0001799,2]
[404526467,1770243048050,-152.38,0.0001799,2]
[404526469,1770243048059,-152.38,0.0001799,2]
[404526471,1770243048069,-151.0,0.00017997,2]
[404526473,1770243048078,-150.0,0.00017999,2]
[404526475,1770243048089,-187.66498297,0.00017999,2]
[404526477,1770243048099,-150.0,0.00017999,2]
[404526479,1770243048108,-300.162,0.00017999,2]
[404526481,1770243048118,-300.0,0.00017999,2]
[404526483,1770243048129,-200.0,0.00017999,2]
[404526485,1770243048138,-200.0,0.00017999,3]
[404526486,1770243048147,-200.0,0.00017999,4]
[404526487,1770243048156,-200.0,0.00017999,5]
[404526488,1770243048165,-200.0,0.00017999,6]
[404526489,1770243048175,-200.0,0.00017999,7]
[404526490,1770243048184,-200.0,0.00017999,8]
[404526491,1770243048194,-200.0,0.00017999,9]
[404526492,1770243048203,-300.0,0.00017999,2]
[404526493,1770243048212,-500.0,0.00017999,2]
[404526494,1770243048222,-276.48,0.00017999,2]
[404526495,1770243048231,-300.0,0.00017999,2]
[404526496,1770243048241,-300.0,0.00017999,2]
[404526497,1770243048250,-300.0,0.00017999,2]
[404526498,1770243048260,-666.0,0.00017999,2]
[404526499,1770243048269,-300.0,0.00017999,2]
[404526500,1770243048279,-300.0,0.00017999,2]
[404526501,1770243048288,-784.17514772,0.00017999,2]
[404526502,1770243048297,-412472.01253129,0.00018,2]
[404526503,1770243048311,-1068.4145,0.00018,2]
[404526504,1770243048322,-1130.776072,0.00018,2]
[404526505,1770243048336,-284.06000002,0.00018,2]
[404526506,1770243048347,-809.74516329,0.00018,2]
[404526507,1770243048372,-7106.96114009,0.00018,2]
[404526508,1770243048383,-320.0804,0.00018,2]
[404526509,1770243048401,-1677.92850623,0.00018,2]
[404526510,1770243048416,-451.15,0.00018,2]
[404526511,1770243048427,-7749836.38133265,0.00018,2]
[404526512,1770243048438,-314.88599982,0.00018,2]
[404526513,1770243048450,-1866.07550372,0.00018,2]
[404526514,1770243048465,-61290.89114272,0.00018,2]
[404526515,1770243048476,-7406.51928557,0.00018,2]
[404526516,1770243048488,-38189.82715458,0.00018,2]
[404526517,1770243048499,-11947.57819722,0.00018,2]
[404526518,1770243048514,-11842.41575739,0.00018,2]
[404526519,1770243048525,-1999.958517,0.00018,2]
[404526520,1770243048540,-262.175,0.00018,2]
[404526521,1770243048551,-4204.4,0.00018,2]
[404526534,1770243092030,-33720.68833981,0.000439,10]
[404526535,1770243092061,-8966279.31166019,0.000439,10]
[404526536,1770243096940,-1035921.08713981,0.000439,10]
[404526537,1770243096969,-1303.77054232,0.000439,15]
[404526538,1770243096999,-3890225.88448109,0.000439,10]
[404526539,1770243097028,-4072549.25783678,0.000439,10]
[404526540,1770243105273,-9000000.0,0.000439,10]
[404526541,1770243108956,-9000000.0,0.000439,10]
[404526542,1770243112571,-7895502.52680672,0.000439,10]
[404526543,1770243112601,-742769.63075165,0.000439,10]
[404526544,1770243112630,-361727.84244163,0.000439,10]
[404526545,1770243123534,-1130678.93451912,0.000439,10]
[404526546,1770243123564,-1011339.15507789,0.000439,10]
[404526547,1770243123593,-675014.67701353,0.000439,10]
[404526548,1770243123622,-969675.19527502,0.000439,10]
[404526549,1770243123651,-575941.85949626,0.000439,10]
[404526550,1770243123685,-3637350.17861818,0.000439,10]
[404526551,1770243130940,-2141564.90919878,0.000439,10]
[404526552,1770243130971,-7858435.09080122,0.000439,10]
[404526553,1770243142014,-10000000.0,0.000439,10]
[404526584,1770244102015,-4893.39212737,0.0001,2]
[404526588,1770244124687,-8603.71563339,0.0001,2]
[404526657,1770244231385,-300.0,0.000121,2]
[404526659,1770244231394,-250.0,0.000121,2]
[404526661,1770244231404,-195.0,0.000121,2]
[404526663,1770244231413,-500.0,0.00013598,2]
[404526665,1770244231423,-500.0,0.00013698,2]
[404526666,1770244231433,-565.6926201,0.00013698,2]
[404526667,1770244231443,-1659.01889693,0.00013698,2]
[404526668,1770244231460,-2869.89026542,0.00013698,2]
[404526669,1770244231475,-714.16136517,0.00013698,2]
[404526670,1770244231521,-784.2888221,0.00013698,2]
[404526671,1770244231532,-1500.0,0.00014,2]
[404526672,1770244231544,-181.02,0.00014299,2]
[404526673,1770244231555,-500.0,0.000146,2]
[404526674,1770244231566,-1708.0,0.00014815,2]
[404526675,1770244231588,-157.0,0.00014844,2]
[404526676,1770244231604,-1777.0,0.00014874,2]
[404526677,1770244231616,-673.15069122,0.00014948,2]
[404526678,1770244231628,-269.18756554,0.00014948,2]
[404526679,1770244231643,-311.2254053,0.00014948,2]
[404526680,1770244231653,-2177.28879869,0.00014948,2]
[404526681,1770244231663,-200.0,0.00015021,2]
[404526682,1770244231674,-152.38,0.00015038,2]
[404526683,1770244231686,-152.38,0.00015038,2]
[404526684,1770244231696,-159.59678435,0.00015038,2]
[404526685,1770244231708,-316.0,0.00015046,2]
[404526686,1770244231719,-300.0,0.00015046,2]
[404526687,1770244231728,-460.18756931,0.00015047,2]
[404526688,1770244231738,-184.90251878,0.00015047,2]
[404526689,1770244231748,-500.0,0.00015047,2]
[404526690,1770244231758,-524.82241065,0.00015047,2]
[404526691,1770244231768,-500.0,0.00015047,2]
[404526692,1770244231778,-500.0,0.00015047,2]
[404526693,1770244231788,-500.0,0.00015047,2]
[404526694,1770244231798,-500.0,0.00015047,2]
[404526695,1770244231808,-500.0,0.00015047,2]
[404526696,1770244231817,-500.0,0.00015047,2]
[404526697,1770244231827,-500.0,0.00015047,2]
[404526698,1770244231836,-500.0,0.00015047,2]
[404526699,1770244231854,-4875.22,0.00015048,2]
[404526700,1770244231864,-23416.65892002,0.00015048,2]
[404526701,1770244231876,-930.81,0.00015048,2]
[404526702,1770244231887,-352.78751204,0.00015048,2]
[404526703,1770244231951,-1222.26247968,0.00015048,2]
[404526705,1770244237530,-367.0,0.00015048,2]
[404526706,1770244237588,-1120.43290127,0.00015048,2]
[404526707,1770244237601,-911.35867628,0.00015048,2]
[404526708,1770244237651,-16735.26701193,0.00015048,2]
[404526717,1770244239611,-10208.49682375,0.00015048,2]
[404526718,1770244239741,-1066.41701753,0.00015048,2]
[404526719,1770244239752,-3287.1610086,0.00015048,2]
[404526720,1770244240050,-13177.90426045,0.00015048,2]
[404526730,1770244244046,-6712.86309925,0.00015048,2]
[404526731,1770244244057,-8600.6187604,0.00015048,2]
[404526732,1770244244068,-304.98391669,0.00015048,2]
[404526733,1770244244078,-301.0,0.00015048,2]
[404526737,1770244245513,-1292.24240705,0.00015048,2]
[404526738,1770244245576,-825.99408994,0.00015048,2]
[404526753,1770245431605,-447.5,0.00011233,2]
[404526754,1770245431679,-675.352,0.00011233,2]
[404526755,1770245431692,-1992.598,0.00011233,2]
[404526756,1770245431704,-1647.36245773,0.00013498,2]
[404526757,1770245431716,-377.78754227,0.00013498,2]
[404526758,1770245431727,-150.0,0.00013533,2]
[404526759,1770245431736,-2800.26,0.00013699,2]
[404526761,1770245431745,-300.0,0.00013717,2]
[404526763,1770245431755,-1200.0,0.00013717,2]
[404526765,1770245431764,-5817.45863671,0.00013718,2]
[404526768,1770245431783,-8.98873459,0.00013718,2]
[404526770,1770245431792,-347.83399949,0.00013772,2]
[404526789,1770245437663,-417.96600051,0.00013772,2]
[404526790,1770245437672,-162.27189523,0.00014,2]
[404526791,1770245437685,-11.96345079,0.00014,2]
[404526792,1770245437696,-1697.28,0.00014015,2]
[404526793,1770245437706,-150.0,0.00014058,2]
[404526794,1770245437715,-5660.75654921,0.00014085,2]
[404526795,1770245437727,-423.81250614,0.00014085,2]
[404526796,1770245437778,-253.13835,0.00014085,2]
[404526797,1770245437790,-2836.34429703,0.00014085,2]
[404526798,1770245437801,-7530.09649591,0.00014085,2]
[404526799,1770245437812,-9415.94431804,0.00014085,2]
[404526800,1770245437839,-1867.36133801,0.00014085,2]
[404526806,1770245439723,-585226.76950156,0.00014085,2]
[404526807,1770245439926,-564.11572434,0.00014085,2]
[404526808,1770245439938,-4865.58111011,0.00014085,2]
[404526809,1770245440001,-387.37693892,0.00014085,2]
[404526810,1770245440013,-2372.22640451,0.00014085,2]
[404526811,1770245440025,-1019.64210675,0.00014085,2]
[404526812,1770245440036,-19436.80445432,0.00014085,2]
[404526813,1770245440046,-416.20850001,0.00014085,2]
[404526814,1770245440058,-3157.5,0.00014085,2]
[404526819,1770245444851,-17809.05438071,0.00014085,2]
[404526820,1770245444864,-6075.09533585,0.00014085,2]
[404526821,1770245444979,-345.72,0.00014085,2]
[404526823,1770245445960,-243404.77782372,0.00014085,2]
[404526824,1770245446019,-7406.53007618,0.00014085,2]
[404526825,1770245446030,-391.43999997,0.00014085,2]
[404526826,1770245446082,-21983.99863945,0.00014085,2]
[404526827,1770245446093,-15633.04892785,0.00014085,2]
[404526828,1770245446104,-293.0,0.00014085,2]
[404527015,1770246631774,-270.62,0.0001276,2]
[404527017,1770246631786,-166.66,0.0001313,2]
[404527019,1770246631796,-1179.582,0.00013248,2]
[404527020,1770246631805,-157.18,0.00013248,2]
[404527021,1770246631815,-150.0,0.00013274,2]
[404527022,1770246631824,-620.95800032,0.0001337,2]
[404527023,1770246631835,-403.04199968,0.0001337,2]
[404527024,1770246631844,-147.83960609,0.00013377,2]
[404527025,1770246631855,-2.55039391,0.00013377,2]
[404527026,1770246631864,-166.66,0.00013407,2]
[404527027,1770246631874,-300.0,0.00013415,2]
[404527028,1770246631883,-1200.0,0.00013415,2]
[404527029,1770246631892,-2397.8240862,0.00013416,2]
[404527030,1770246631990,-786.41044328,0.00013416,2]
[404527031,1770246632001,-2734.76506803,0.00013416,2]
[404527032,1770246632013,-824.51661962,0.00013416,2]
[404527033,1770246632025,-344.58,0.00013416,2]
[404527034,1770246632039,-2116.75233148,0.00013416,2]
[404527035,1770246632051,-1501.99056459,0.00013416,2]
[404527036,1770246632062,-618.96863816,0.00013416,2]
[404527037,1770246632071,-108.02808184,0.00013417,2]
[404527047,1770246637932,-391.97191816,0.00013417,2]
[404527048,1770246637942,-143.44600809,0.00013417,2]
[404527049,1770246637953,-356.55399191,0.00013417,2]
[404527050,1770246637963,-286.86160268,0.00013417,2]
[404527051,1770246637974,-2293.58440546,0.00013418,2]
[404527052,1770246637985,-1461.14,0.00013418,2]
[404527053,1770246637996,-24935.10583119,0.00013418,2]